Cogmind - Beta 16 *** ADVENTURER MODE // 2025.10.30 @ 00:28:21 Player: Sprocket Result: Destroyed by as-55251 with Assembled Rifle Performance ------------- Evolutions (1) 500 Regions Visited (4) 800 Robots Destroyed (24) 120 Value Destroyed (372) 372 Prototype IDs (29) 580 Alien Tech Used (0) 0 Bonus (300) 300 TOTAL SCORE: 2672 Bonus ------- Aligned with FarCom 300 Cogmind --------- Core Integrity 0/400 Matter 186/300 Energy 99/100 System Corruption 14% Temperature Hot (213) Movement Core (200) Ox3 Location -9/Exiles Parts ------- > --- POWER (1) -------- (None) > --- PROPULSION (2) --- (None) > --- UTILITY (4) ------ Medium Storage Unit Experimental Sensor Array > --- WEAPON (2) ------- (None) > --- INVENTORY (10) --- Flying Fortress v7 Scrap Suit Improved Terrain Scanner Seismic Detector ECM Suite Datajack Peak State ------------ > --- POWER ------------ Light Ion Engine > --- PROPULSION ------- Wheel Compact Wheel > --- UTILITY ---------- Medium Storage Unit Visual Processing Unit Experimental Sensor Array Shield Generator > --- WEAPON ----------- Battle Cannon Mining Laser > --- INVENTORY -------- Flying Fortress v7 Scrap Suit Improved Terrain Scanner Seismic Detector ECM Suite Datajack [Rating: 24] Favorites ----------- Power Ion Engine Engine Ion Engine Propulsion Compact Wheel Wheel Compact Wheel Utility Medium Storage Unit Device Seismic Detector Storage Medium Storage Unit Processor Visual Processing Unit Hackware Hacking Suite Weapon Mining Laser Energy Gun EM Pulse Gun Ballistic Gun Light Assault Rifle Ballistic Cannon Battle Cannon Special Weapon Mining Laser Build | -11 -10 -9 -9 -9 ------- Run | Yrd Mat Mat Min Exi Slots Evolved 2 | . . 2 . . Power . | . . . . . Propulsion . | . . . . . Utility 2 | . . 2 . . Weapon . | . . . . . Parts Attached 28 | 10 6 7 5 . Power 4 | 1 . 2 1 . Engine 4 | 1 . 2 1 . Core . | . . . . . Reactor . | . . . . . Propulsion 6 | 3 2 1 . . Treads . | . . . . . Leg . | . . . . . Wheel 6 | 3 2 1 . . Hover . | . . . . . Flight . | . . . . . Utility 9 | 3 1 3 2 . Device 5 | 2 . 1 2 . Storage 2 | 1 1 . . . Processor 1 | . . 1 . . Hackware 1 | . . 1 . . Protection . | . . . . . Artifact . | . . . . . Weapon 9 | 3 3 1 2 . Energy Gun 1 | . . 1 . . Energy Cannon . | . . . . . Ballistic Gun 2 | 2 . . . . Ballistic Cannon 2 | . 1 . 1 . Launcher . | . . . . . Special Weapon 4 | 1 2 . 1 . Impact Weapon . | . . . . . Slashing Weapon . | . . . . . Piercing Weapon . | . . . . . Special Melee Weapon . | . . . . . Unidentified Prototypes 1 | . . . 1 . Parts Lost 19 | . . 9 3 7 Power 4 | . . 2 1 1 Propulsion 5 | . . 2 1 2 Utility 3 | . . 1 . 2 Weapon 7 | . . 4 1 2 Highest Loss Streak 7 | . . 7 3 7 To Critical Strikes . | . . . . . Average Backups 4 | 3 5 7 5 6 Power . | . . . . . Propulsion 1 | . 1 2 1 1 Utility 2 | 1 1 2 3 4 Weapon . | . 1 1 . . Tool/Special . | . . . . . Unused Backups 4 | . . . . 4 Power . | . . . . . Propulsion 2 | . . . . 2 Utility 1 | . . . . 1 Weapon . | . . . . . Tool/Special 1 | . . . . 1 Average Slot Usage (%) 92 | . 99 89 81 97 Engine 9 | . 14 9 3 10 Wheel 22 | . 28 21 15 21 Device 19 | . 19 11 22 21 Storage 10 | . 8 11 11 11 Processor 7 | . . 10 11 10 Hackware 1 | . . 7 . . Ballistic Gun 3 | . 7 4 . . Ballistic Cannon 9 | . 10 6 10 10 Special Weapon 8 | . 9 4 7 10 Peak Build Rating 24 | 9 9 16 21 24 Average Rating 12 | 8 7 12 15 22 On Entrance 9 | . 9 9 9 21 Avg Prop Armor Cover (%) . | . . . . . Naked Turns . | . . . . . Heaviest Build 24 | 14 20 24 21 20 Greatest Support 32 | 26 32 28 28 26 Greatest Overweight (x) 3 | 2 . 1 1 3 Average Overweight (x) . | . . . . . Largest Inventory Capacity 10 | 8 10 10 10 10 Average Capacity 7 | 5 8 10 10 10 Most Carried 10 | 4 10 10 8 10 Average Carried 5 | 3 5 7 6 8 Final Capacity 10 | 5 10 10 10 10 Final Carried 10 | 3 10 5 7 10 Class Distribution -------------------- 61% | Scavenger-Mutant 30% | Mutant 7% | Hacker-Mutant Dominant Class ---------------- Mutant | -10/Materials Hacker-Mutant | -9/Materials Scavenger-Mutant | -9/Mines Scavenger-Mutant | -9/Exiles Resources | -11 -10 -9 -9 -9 ----------- Run | Yrd Mat Mat Min Exi Matter Collected 659 | 328 84 92 155 . Remotely . | . . . . . Salvage Created 442 | 113 82 165 82 . Parts 40 | 9 13 13 5 . Haulers Intercepted 1 | . . 1 . . Recyclers Shooed . | . . . . . Parts Field Recycled . | . . . . . Retrieved Matter . | . . . . . Parts Self-Destructed . | . . . . . Prevented . | . . . . . Parts Restored . | . . . . . Kills | -11 -10 -9 -9 -9 ------- Run | Yrd Mat Mat Min Exi Combat Hostiles Destroyed 11 | . 6 3 2 . Guns 6 | . 4 2 . . Cannons 4 | . 2 . 2 . Classes Destroyed 9 | 2 3 4 . . Worker 3 | . . 1 2 . Tunneler 5 | 3 . 1 1 . Hauler 1 | . . 1 . . Recycler 1 | 1 . . . . Operator 1 | . . 1 . . Watcher 2 | . 1 1 . . Swarmer 5 | . 5 . . . Grunt 5 | . 1 2 2 . Sentry 1 | . . 1 . . Best Kill Streak 5 | 4 5 3 3 . Combat Bots Only 5 | . 5 3 2 . Max Kills in Single Turn 2 | 1 1 2 1 . Gunslinging . | . . . . . Exploded . | . . . . . Melee . | . . . . . Uniques/NPCs Destroyed . | . . . . . Combat | -11 -10 -9 -9 -9 -------- Run | Yrd Mat Mat Min Exi Hostile Shots Fired 210 | . 29 127 23 31 Missed 63 | . 9 33 12 9 Hits 147 | . 20 94 11 22 Projectile 147 | . 20 94 11 22 Critical Strikes 6 | . . 2 1 3 Damage Taken 1722 | . 129 1032 85 476 Core 442 | . 40 180 12 210 Absorbed by Shields 46 | . . . 33 13 Ignored by Resistances 496 | . 43 281 38 134 Core Remaining (%) 92 | 100 84 . . . Volleys Fired 172 | 86 30 34 22 . Largest 2 | 2 2 2 2 . Hottest 133 | 100 100 120 133 . Shots Fired 206 | 93 44 44 24 1 Gun 63 | 14 21 28 . . Cannon 30 | . 7 6 16 1 Launcher . | . . . . . Special 113 | 79 16 10 8 . Kinetic 91 | 14 28 32 16 1 Thermal 113 | 79 16 10 8 . Explosive . | . . . . . Electromagnetic 2 | . . 2 . . Robot Hit Streak 14 | 4 6 14 6 6 Robot Miss Streak 2 | 1 2 2 1 . Penetration Max . | . . . . . Secondary Targets . | . . . . . Shots Hit Robots 65 | 9 18 22 15 1 Core Hits 34 | 5 8 15 6 . Critical Kills . | . . . . . Critical Parts Destroyed . | . . . . . Critical Strikes 1 | . . . 1 . Blast 1 | . . . 1 . Melee Attacks . | . . . . . Impact . | . . . . . Slashing . | . . . . . Piercing . | . . . . . Sneak Attacks . | . . . . . Combat Hostiles . | . . . . . Follow-up Attacks . | . . . . . Damage Inflicted 1052 | 106 244 334 341 27 Guns 394 | 106 124 164 . . Cannons 449 | . 72 57 293 27 Explosions 100 | . . 100 . . Melee . | . . . . . Ramming 13 | . . 13 . . Kinetic 825 | 106 196 203 293 27 Thermal 196 | . 48 100 48 . Explosive . | . . . . . Electromagnetic 18 | . . 18 . . Impact . | . . . . . Slashing . | . . . . . Piercing . | . . . . . Highest Corruption 14 | . . 11 11 14 Average Corruption 10 | . . 8 11 11 Corruption Purged . | . . . . . Corruption Blocked . | . . . . . Effects 46 | . . 4 22 20 Message Errors 12 | . . 1 7 4 Matter Fused 8 | . . 1 2 5 Heat Flow Errors 6 | . . . 2 4 Energy Discharges 4 | . . 1 3 . Data Loss (minor) 8 | . . . 5 3 Data Loss (major) 3 | . . . 1 2 Misfires 2 | . . . 1 1 Alerts 2 | . . . 1 1 Misdirections 1 | . . 1 . . Overload Shots . | . . . . . Overflow Damage 20 | . . . 20 . Projectiles 20 | . . . 20 . Explosions . | . . . . . Melee . | . . . . . Knockbacks 5 | . 1 . 4 . Impact . | . . . . . Kinetic 5 | . 1 . 4 . Secondary . | . . . . . Self-Inflicted Damage 35 | . . 35 . . Shots 1 | . . 1 . . Rammed 9 | . . 9 . . Targets Rammed 9 | . . 9 . . Kicked . | . . . . . Crushed . | . . . . . Highest Temperature 269 | 260 40 41 264 269 Average Temperature 54 | 62 12 10 67 130 Received Heat Transfer 620 | . 30 522 68 . Effects 4 | 3 . . . 1 Energy Bleed 1 | . . . . 1 Interference 3 | 3 . . . . Siege Activations . | . . . . . Martial Activations . | . . . . . Shielding Activations . | . . . . . Robots Disrupted . | . . . . . Combat Hostiles . | . . . . . Robots Corrupted . | . . . . . Combat Hostiles . | . . . . . Parts Fried . | . . . . . Impact Corruptions . | . . . . . Robots Melted . | . . . . . Combat Hostiles . | . . . . . Parts Melted 1 | . . . 1 . Heat Transferred 400 | . 100 200 100 . Parts Sabotaged . | . . . . . Parts Stolen . | . . . . . Parts Stripped . | . . . . . Power Chain Reactions 1 | . . 1 . . Alert | -11 -10 -9 -9 -9 ------- Run | Yrd Mat Mat Min Exi Maximum Alert Level . | . . . . . Low Security (%) 100 | 100 100 100 100 . Level 1 . | . . . . . Level 2 . | . . . . . Level 3 . | . . . . . Level 4 . | . . . . . Level 5 . | . . . . . High Security . | . . . . . Max Security . | . . . . . Peak Influence 142 | 10 100 142 51 . Initial 46 | . . 12 46 . Average 10 | . 26 17 7 . Influence Increases 646 | 20 304 253 69 . Destroy 0b10 Robot/C 220 | . 120 60 40 . Destroy 0b10 Robot/NC 65 | 20 5 25 15 . Destroy Leader 66 | . 22 34 10 . Successful Hack 28 | . 23 5 . . Destroy Structure 27 | . 14 9 4 . Lose Combat Pursuer 240 | . 120 120 . . Influence Decreases 646 | 20 268 147 211 . Entered New Map 120 | . . 24 96 . Time Decay 447 | 20 268 74 85 . Lost Part 79 | . . 49 30 . Squads Dispatched 6 | . 1 5 . . Investigation 4 | . 1 3 . . Extermination . | . . . . . Reinforcement 2 | . . 2 . . Assault . | . . . . . Garrison . | . . . . . Intercept . | . . . . . Searches Triggered . | . . . . . Construction Impeded . | . . . . . Haulers Reinforced . | . . . . . Active Scanning Responses . | . . . . . Cargo Convoy Interrupts . | . . . . . Stealth | -11 -10 -9 -9 -9 --------- Run | Yrd Mat Mat Min Exi Distress Signals 5 | . . 5 . . Communications Jammed . | . . . . . Distress Signals . | . . . . . Times Spotted 83 | . 20 53 2 8 Peak Tracking Total 16 | . 4 16 2 12 Tactical Retreats 12 | . 3 9 . . ECM-based Alert Blocks 32 | . . 32 . . Traps | -11 -10 -9 -9 -9 ------- Run | Yrd Mat Mat Min Exi Traps Triggered 2 | . 1 1 . . Indirectly . | . . . . . Trap Hack Attempts . | . . . . . Triggered . | . . . . . Disarmed . | . . . . . Reprogrammed . | . . . . . Reused . | . . . . . Traps Extracted . | . . . . . Installed . | . . . . . Triggered . | . . . . . Machines | -11 -10 -9 -9 -9 ---------- Run | Yrd Mat Mat Min Exi Machines Disabled . | . . . . . Max in Single Turn . | . . . . . Machines Repaired . | . . . . . Machines Dismantled . | . . . . . Machines Sabotaged . | . . . . . Overloaded Fab Kills . | . . . . . Hacking | -11 -10 -9 -9 -9 --------- Run | Yrd Mat Mat Min Exi Machines Accessed 15 | . 8 2 . 5 Terminals 9 | . 7 2 . . Fabricators . | . . . . . Repair Stations . | . . . . . Recycling Units 1 | . 1 . . . Scanalyzers . | . . . . . Garrison Access . | . . . . . Total Hacks 62 | . 18 8 . 36 Successful 55 | . 13 6 . 36 Failed 7 | . 5 2 . . Catastrophic . | . . . . . Database Lockouts . | . . . . . Manual 2 | . . . . 2 Terminals 24 | . 16 8 . . Fabricators . | . . . . . Repair Stations . | . . . . . Recycling Units 2 | . 2 . . . Scanalyzers . | . . . . . Garrison Access . | . . . . . Terminal Hacks 53 | . 11 6 . 36 Record 39 | . 2 2 . 35 Prototype ID Bank 3 | . 2 1 . . Emergency Access Points 1 | . 1 . . . Alert Level 1 | . 1 . . . Locate Traps 1 | . 1 . . . Dispatch Records 2 | . 1 1 . . Transport Status 1 | . . 1 . . Hauler Manifests 1 | . 1 . . . Registered Components 1 | . . 1 . . Zone Layout 2 | . 2 . . . Proto ID Catalog 1 | . . . . 1 Fabricator Hacks . | . . . . . Repair Station Hacks . | . . . . . Recycling Unit Hacks 2 | . 2 . . . Report Inventory 1 | . 1 . . . Retrieve Components 1 | . 1 . . . Scanalyzer . | . . . . . Garrison Access Hacks . | . . . . . Unauthorized Hacks . | . . . . . Terminals . | . . . . . Fabricators . | . . . . . Repair Stations . | . . . . . Recycling Units . | . . . . . Scanalyzers . | . . . . . Garrison Access . | . . . . . Data Cores Recovered 1 | . . 1 . . Used . | . . . . . Hacking Detections 7 | . 5 2 . . Full Trace Events 2 | . . 2 . . Feedback Events . | . . . . . Feedback Blocked . | . . . . . Robot Schematics Acquired . | . . . . . Robots Built . | . . . . . Authchips . | . . . . . Time . | . . . . . Total Robot Build Rating . | . . . . . Part Schematics Acquired . | . . . . . Parts Built . | . . . . . Authchips . | . . . . . Time . | . . . . . Total Part Build Rating . | . . . . . Part Studies Acquired . | . . . . . Parts Repaired . | . . . . . Time . | . . . . . Parts Recycled . | . . . . . Recycled Matter . | . . . . . Retrieved Matter . | . . . . . Retrieved Components 3 | . 3 . . . Parts Scanalyzed . | . . . . . Part Schematics Acquired . | . . . . . Parts Damaged . | . . . . . Bothacking | -11 -10 -9 -9 -9 ------------ Run | Yrd Mat Mat Min Exi Used RIF Installer . | . . . . . Robots Hacked . | . . . . . Non-combat . | . . . . . Combat . | . . . . . Robot Hacks Applied . | . . . . . Relay Couplers Released . | . . . . . Fabnet Peak Effective % . | . . . . . Robots Rewired . | . . . . . Allies Hacked . | . . . . . Hacks Repelled . | . . . . . Allies | -11 -10 -9 -9 -9 -------- Run | Yrd Mat Mat Min Exi Total Allies . | . . . . . Largest Group . | . . . . . Highest-Rated Group . | . . . . . Highest-Rated Ally . | . . . . . Total Orders . | . . . . . Ally Attacks . | . . . . . Total Damage . | . . . . . Kills . | . . . . . Allies Corrupted . | . . . . . Allies Melted . | . . . . . Intel | -11 -10 -9 -9 -9 ------- Run | Yrd Mat Mat Min Exi Active Infowar (turns) 3182 | 1079 724 339 522 518 Optics 1377 | . . 338 522 517 Sensors 764 | . . . 246 518 Terrain 1333 | 1079 254 . . . Seismic 1765 | 840 724 22 179 . ECM 282 | . . 282 . . Robot Analysis Total . | . . . . . Derelict Logs Recovered . | . . . . . Drone Launches . | . . . . . Drone Recoveries . | . . . . . Exploration | -11 -10 -9 -9 -9 ------------- Run | Yrd Mat Mat Min Exi Turns Passed 3259 | 1156 724 339 522 518 Spaces Moved 2417 | 619 630 178 421 569 Core 20 | 19 . . . 1 Treads . | . . . . . Legs . | . . . . . Wheels 2397 | 600 630 178 421 568 Hover . | . . . . . Flight . | . . . . . Fastest Speed 50 | 50 90 90 90 90 Average Speed 93 | 90 93 95 102 90 Slowest Speed 200 | 150 100 105 115 200 Overloaded Moves . | . . . . . Propulsion Burnouts . | . . . . . Robots Hopped . | . . . . . Potential Cave-ins 3 | . . 3 . . Cave-ins Triggered 2 | . . 2 . . Exploration Rate (%) 60 | 32 81 32 72 87 Regions Visited 4 Branch Regions 2 Pre-discovered Areas 1 | . . . . 1 Known Exits Taken . | . . . . . Unknown Exits Taken 4 | 1 1 1 1 . Scrap Searched 1 | . . . 1 . Spaces Dug 56 | 27 14 10 5 . Terrain Destroyed 63 | 31 14 12 6 . Melee . | . . . . . Projectile 61 | 31 14 10 6 . AOE 2 | . . 2 . . Terrain Rammed . | . . . . . Walls Destroyed . | . . . . . Machines Disabled . | . . . . . Actions | -11 -10 -9 -9 -9 --------- Run | Yrd Mat Mat Min Exi Total 3002 | 968 697 291 473 573 Wait 314 | 242 7 48 16 1 Move 2412 | 618 629 176 420 569 Hop . | . . . . . Pick Up 30 | 10 9 4 6 1 Fast Attach 2 | . 2 . . . Attach 38 | 9 8 14 7 . Detach 17 | 2 8 5 2 . Swap 1 | 1 . . . . Drop 5 | . 4 . . 1 Fire 172 | 86 30 34 22 . Melee . | . . . . . Ram 9 | . . 9 . . Kick . | . . . . . Crush . | . . . . . Escape Stasis 1 | . . 1 . . Rewire 1 | . . . . 1 Trap . | . . . . . Miscellaneous . | . . . . . Route ------- -11/Scrapyard -10/Materials (discovered 5 exits: *Mat x3 / [*Min x2]) -9/Materials -9/Mines (discovered 3 exits: [*Mat x2] / *Exi) -9/Exiles (discovered 1 exit: [*Min]) History --------- Turn | Location | Event 2 | -11/Scrapyard | Met Revision 17 6 | -11/Scrapyard | Discovered new exit (range 15) 1157 | -11/Scrapyard | Entered Materials 1158 | -10/Materials | Build established: Scavenger-Mutant 1250 | -10/Materials | Discovered new exit (range 6) 1275 | -10/Materials | Discovered new exit (range 3) 1387 | -10/Materials | Discovered new exit (range 5) 1414 | -10/Materials | Discovered new exit (range 16) 1603 | -10/Materials | Discovered new exit (range 10) 1654 | -10/Materials | Build established: Mutant 1881 | -10/Materials | Entered another Materials area 1881 | -9/Materials | Evolved 2 slots: Utility x2 2127 | -9/Materials | Crushed by falling debris 2143 | -9/Materials | Crushed by falling debris 2166 | -9/Materials | System corruption reached 10% 2196 | -9/Materials | Lost 7 parts (1p2n1u3w) 2216 | -9/Materials | Discovered new exit (range 6) 2220 | -9/Materials | Entered Mines 2237 | -9/Mines | A weapon hastily lodged in a ceiling crevice suddenly fell to the ground 2294 | -9/Mines | Lost 3 parts (1p1n1w) 2326 | -9/Mines | Found a Scrap Suit stashed away for nefarious purposes 2328 | -9/Mines | Found Scrap Suit 2337 | -9/Mines | Discovered new exit (range 13) 2487 | -9/Mines | Found a damaged Exp. Sensor Array with a note attached 2494 | -9/Mines | Found Prototype Device 2496 | -9/Mines | Identified Exp. Sensor Array 2668 | -9/Mines | Deemed a non-threat by the Exiles lab entrance 2668 | -9/Mines | Discovered new exit (range 5) 2705 | -9/Mines | Discovered new exit (range 8) 2742 | -9/Mines | Entered Exiles 2761 | -9/Exiles | Discovered new exit (range 15) 2770 | -9/Exiles | Met 8R-AWN 2791 | -9/Exiles | Met EX-HEX 2836 | -9/Exiles | Met EX-BIN 2852 | -9/Exiles | Aligned with FarCom system 2853 | -9/Exiles | Given EX-Vault access code 2892 | -9/Exiles | Build established: Scavenger-Mutant 2892 | -9/Exiles | Opened EX-Vault 2931 | -9/Exiles | Warned to stay clear of 0b10 Research branches 2966 | -9/Exiles | Found Flying Fortress v7 3056 | -9/Exiles | Met EX-DEC 3063 | -9/Exiles | Learned location of Zion (-6) 3147 | -9/Exiles | Visited The Gauntlet 3242 | -9/Exiles | Attacked by the Exiles 3250 | -9/Exiles | Core integrity fell below 50% 3256 | -9/Exiles | Core integrity fell below 20% 3260 | -9/Exiles | Destroyed by as-55251 with Assembled Rifle Last Messages --------------- Chronowheel, only to never be seen again. System corrupted: Component data lost. System corrupted: FCS attempts to trigger Battle Cannon. System corrupted: Battle Cannon misfires. EXILES: Hostile robot within lab perimeter. Defensive protocols time, folks! EX-DEC: "Let's see what this bad boy can do..." EX-DEC deploys DAS Turret. Wheel destroyed. Knocked back. Shield Generator destroyed. Mining Laser destroyed. Lgt. Ion Engine destroyed. System corrupted: Heat flow error (+297). EX-BIN: "I just want to science!" Battle Cannon destroyed. Visual Processing Unit destroyed. Com. Wheel destroyed. Knocked back. Map ----- +----------------------------------------------------+ | ##??????????# #????????##"" #??????? | | ???#"" ######???### ###?######"" #??????? | | ????#" """#####X# #"###""""""" ##?????? | | ????#" """""" " "" ##???## | | ????#"# "" """ " #####" | | ??????## " " " | | ???????### | | ?????????### | | ???????????## | | ????????????## | | ?????????????##" | | ??????????????#""" """""" | | ?????????????##" ######""" | | ?????????????#"" ""##????#####""" | | ????????????##""" """##?????????##""" | | ????????????#""" """##???????????#"""" | | ????????????#""" ""#???????????##"" | | ????????????#"" ########??####"""" | | ????????????#""" ##aaa####""" | | ????????????#"" c """" | | ????????????##"" t | | ?????????????#"""" aa a | | ?????????????## a a | | ??????????????#" a " "" | | ??????????????#"""" c ""## ##""" " " | | ??????????????#"" @ ""#### ######""" | | ??????????????#" % a """##??# #????###"" | | ??????????????#""" ""#??## ####???### | | ??????????????## % ""##??#! "!#?????? | | ???????????????#"" % "##???#" !#?????? | | ???????????????##""" % ##????#" "#?????? | | ????????????????##"""" ##?????#!!""!"#?????? | | ?????????????????### % % #??????########?????? | | ???????????????????##### ;#???????????????????? | | ???????????????????????## ##???????????????????? | | ????????????????????????# #????????????????????? | | ????????????????????????# #????????????????????? | | ????????????????????????# #????????????????????? | | ?????####????#######????# #????????????????????? | | ???"""""""#??#"""""""???# #????????????????????? | | ??#"""""""#??#"""""""#??#c #????????????????????? | | """""""" "#??#" """"#??# #????????????????????? | | ""#""" """#??#"" """#??# #????????????????????? | | ""#"" ""????"" ""???# #????????????????????? | | ""###"""########"""###### ########?????????????? | | """"" """""""" """""" """""""#?""""????????? | | """" """"""" "#"" ""#???????? | | " ""#???????? | | " " "#???????? | | " """#???????? | +----------------------------------------------------+ Best States ------------- Heat Dissipation 28 Energy Generation 14 Energy Capacity 280 Matter Stores 300 Matter Capacity 300 Sight Range 18 Robot Scan Range 20 Terrain Scan Range 16 Terrain Scan Density 10 ECM Strength 1 Resistance: KI 20 Resistance: TH 20 Resistance: EX 20 Resistance: EM 20 Resistance: I 20 Resistance: S 20 Resistance: P 20 Evasion (%) 50 Offensive Hacking 20 Item Schematics ----------------- None Robot Schematics ------------------ None Fabricated ------------ Nothing Repaired ---------- Nothing Studied --------- None Alien Tech Used ----------------- None Achievements -------------- Sixth Sense System Compromised Unlikely Earthworm You Again Challenges ------------ None Game ------ Seed AlloyArcFalx Manual? 0 Play Time 00:53:40 Cumulative 5.6 hours Start 2025.10.29 @ 23:34:43 End 2025.10.30 @ 00:28:21 Sessions 1 Manual Loads 0 Difficulty Adventurer Special Mode None Game No. 4 Rogue 0 Adventurer 4 Explorer 0 Win Type - Total 0 Types 0/0/0/0/0/0/0/0/0/0 Lore% 8 Gallery% 6 Achievement% 9 Wizard Run 0 Options --------- Layout 1 ASCII 0 Keyboard 0 Movement Mouse Keybinds 0 Fullscreen 1 Font 32/SmallcapsGlow Map View 50x35 Zoom Use 0% Tactical HUD 0 Map Filters NONE Filters NONE Steam 1 RUN: b88cf7b7-b6fa-4a4f-80de-c6d680d0f26d